[Event "*** Titled Tuesday Blitz"]
[Site "Chess.com"]
[Date "2021.02.02"]
[Round "5"]
[White "FMJoseHerrera"]
[Black "lamomiablanca"]
[Result "1-0"]
[WhiteElo "2499"]
[BlackElo "2295"]
[TimeControl "180+1"]
[EndTime "10:58:52 PST"]
[Termination "FMJoseHerrera won on time"]

1. Nf3 {[%clk 0:03:00.9]} 1... Nf6 {[%clk 0:02:58.8]} 2. g3 {[%clk 0:03:00.6]}
2... g6 {[%clk 0:02:58.3]} 3. Bg2 {[%clk 0:03:01.5]} 3... Bg7 {[%clk 0:02:58.6]}
4. d3 {[%clk 0:03:02]} 4... O-O {[%clk 0:02:59.5]} 5. Nc3 {[%clk 0:03:02.7]}
5... d6 {[%clk 0:03:00.2]} 6. h4 {[%clk 0:03:03.6]} 6... Nbd7 {[%clk 0:02:59.9]}
7. h5 {[%clk 0:03:03.9]} 7... e5 {[%clk 0:03:00.4]} 8. Bg5 {[%clk 0:03:03.8]}
8... h6 {[%clk 0:02:41.4]} 9. Bxf6 {[%clk 0:02:58.2]} 9... Nxf6 {[%clk
0:02:39.2]} 10. hxg6 {[%clk 0:02:59.1]} 10... fxg6 {[%clk 0:02:39.2]} 11. Qd2
{[%clk 0:02:58.8]} 11... Be6 {[%clk 0:02:37.2]} 12. O-O-O {[%clk 0:02:52.9]}
12... c6 {[%clk 0:02:36.3]} 13. Nh4 {[%clk 0:02:51.1]} 13... Bf7 {[%clk
0:02:33.8]} 14. f4 {[%clk 0:02:50.6]} 14... Re8 {[%clk 0:02:08.6]} 15. e4 {[%clk
0:02:48]} 15... Nh5 {[%clk 0:02:02.1]} 16. Ne2 {[%clk 0:02:34.7]} 16... a5
{[%clk 0:01:51.4]} 17. Rdf1 {[%clk 0:02:26.8]} 17... Rf8 {[%clk 0:01:43.9]} 18.
d4 {[%clk 0:01:58.7]} 18... exd4 {[%clk 0:01:35.4]} 19. g4 {[%clk 0:01:36.9]}
19... Nf6 {[%clk 0:01:26]} 20. Nxd4 {[%clk 0:01:23.8]} 20... Qb6 {[%clk
0:01:15.1]} 21. c3 {[%clk 0:01:04.1]} 21... Rae8 {[%clk 0:00:57.4]} 22. f5
{[%clk 0:00:51.3]} 22... g5 {[%clk 0:00:55.7]} 23. Ng6 {[%clk 0:00:48.6]} 23...
Bxg6 {[%clk 0:00:51.8]} 24. fxg6 {[%clk 0:00:49.5]} 24... Nxe4 {[%clk
0:00:17.1]} 25. Bxe4 {[%clk 0:00:47.8]} 25... Rxe4 {[%clk 0:00:17]} 26. Rxf8+
{[%clk 0:00:47.5]} 26... Bxf8 {[%clk 0:00:17.9]} 27. Qf2 {[%clk 0:00:47.4]}
27... Rf4 {[%clk 0:00:17.5]} 28. Qe3 {[%clk 0:00:45.8]} 28... Qd8 {[%clk
0:00:16]} 29. Qe6+ {[%clk 0:00:43.1]} 29... Kg7 {[%clk 0:00:15.1]} 30. Nf5+
{[%clk 0:00:40.7]} 30... Rxf5 {[%clk 0:00:15.3]} 31. gxf5 {[%clk 0:00:39.7]}
31... Qf6 {[%clk 0:00:14.7]} 32. Qd7+ {[%clk 0:00:39.4]} 32... Qe7 {[%clk
0:00:13.6]} 33. Qxe7+ {[%clk 0:00:27.3]} 33... Bxe7 {[%clk 0:00:13.3]} 34. Re1
{[%clk 0:00:28.2]} 34... Bf6 {[%clk 0:00:12.7]} 35. Kd2 {[%clk 0:00:25.5]} 35...
Be5 {[%clk 0:00:12.9]} 36. Ke3 {[%clk 0:00:24.9]} 36... Kf6 {[%clk 0:00:09.5]}
37. Ke4 {[%clk 0:00:25]} 37... g4 {[%clk 0:00:04.8]} 38. c4 {[%clk 0:00:24.7]}
38... h5 {[%clk 0:00:04.1]} 39. Rh1 {[%clk 0:00:24.1]} 39... Kg5 {[%clk
0:00:02.8]} 40. c5 {[%clk 0:00:23.1]} 1-0

[Event "*** Titled Tuesday Blitz"]
[Site "Chess.com"]
[Date "2021.02.02"]
[Round "5"]
[White "marvinguevara"]
[Black "gumimis"]
[Result "0-1"]
[WhiteElo "2132"]
[BlackElo "2326"]
[TimeControl "180+1"]
[EndTime "10:58:53 PST"]
[Termination "gumimis won on time"]

1. e4 {[%clk 0:03:00.9]} 1... c5 {[%clk 0:02:57.8]} 2. d4 {[%clk 0:02:59.7]}
2... cxd4 {[%clk 0:02:57.5]} 3. c3 {[%clk 0:02:59.8]} 3... dxc3 {[%clk
0:02:58.1]} 4. Nxc3 {[%clk 0:02:59.2]} 4... e6 {[%clk 0:02:56.5]} 5. Nf3 {[%clk
0:02:57.6]} 5... a6 {[%clk 0:02:54.7]} 6. Bc4 {[%clk 0:02:55.8]} 6... b5 {[%clk
0:02:54.4]} 7. Bb3 {[%clk 0:02:54.8]} 7... Bb7 {[%clk 0:02:52.5]} 8. O-O {[%clk
0:02:50.6]} 8... d6 {[%clk 0:02:42.7]} 9. Re1 {[%clk 0:02:41.2]} 9... Nd7 {[%clk
0:02:38.4]} 10. Nd5 {[%clk 0:02:40.4]} 10... exd5 {[%clk 0:02:30]} 11. exd5+
{[%clk 0:02:39.5]} 11... Be7 {[%clk 0:02:25]} 12. Bg5 {[%clk 0:02:27]} 12... Kf8
{[%clk 0:02:15.8]} 13. Bf4 {[%clk 0:02:10.5]} 13... Ngf6 {[%clk 0:02:09.4]} 14.
Rc1 {[%clk 0:01:44.4]} 14... Nc5 {[%clk 0:02:03.6]} 15. Rxc5 {[%clk 0:01:33.7]}
15... dxc5 {[%clk 0:02:01.1]} 16. d6 {[%clk 0:01:34]} 16... Bxd6 {[%clk
0:01:21.3]} 17. Bxd6+ {[%clk 0:01:23.5]} 17... Kg8 {[%clk 0:01:21]} 18. Bxc5
{[%clk 0:00:33.7]} 18... Qxd1 {[%clk 0:01:20.1]} 19. Rxd1 {[%clk 0:00:33.2]}
19... Bxf3 {[%clk 0:01:15.5]} 20. gxf3 {[%clk 0:00:32.8]} 20... Rc8 {[%clk
0:00:58.9]} 21. Be7 {[%clk 0:00:23.3]} 21... h5 {[%clk 0:00:49.1]} 22. Rd6
{[%clk 0:00:19]} 22... Ne8 {[%clk 0:00:40.3]} 23. Rd7 {[%clk 0:00:16.9]} 23...
Rc7 {[%clk 0:00:10.6]} 24. Rxc7 {[%clk 0:00:04.1]} 24... Nxc7 {[%clk 0:00:10.4]}
25. Bd8 {[%clk 0:00:04]} 25... Ne6 {[%clk 0:00:09.8]} 26. Bd5 {[%clk 0:00:03.7]}
26... Kh7 {[%clk 0:00:08.8]} 27. Kg2 {[%clk 0:00:04.6]} 27... Rxd8 {[%clk
0:00:08.5]} 28. Kg3 {[%clk 0:00:05.5]} 28... Rxd5 {[%clk 0:00:08.8]} 29. Kh4
{[%clk 0:00:06.4]} 29... g5+ {[%clk 0:00:08.2]} 30. Kg3 {[%clk 0:00:07.3]} 30...
h4+ {[%clk 0:00:08.2]} 31. Kg2 {[%clk 0:00:07.2]} 31... Nf4+ {[%clk 0:00:08.5]}
0-1

[Event "*** Titled Tuesday Blitz"]
[Site "Chess.com"]
[Date "2021.02.02"]
[Round "5"]
[White "sergiochess83"]
[Black "vladjianu"]
[Result "1-0"]
[WhiteElo "2848"]
[BlackElo "2585"]
[TimeControl "180+1"]
[EndTime "10:58:54 PST"]
[Termination "sergiochess83 won by resignation"]

1. e4 {[%clk 0:03:00.9]} 1... d6 {[%clk 0:02:58.4]} 2. d4 {[%clk 0:03:00.1]}
2... Nf6 {[%clk 0:02:57.7]} 3. Nc3 {[%clk 0:02:57.8]} 3... g6 {[%clk 0:02:58]}
4. Nf3 {[%clk 0:02:51.1]} 4... Bg7 {[%clk 0:02:58]} 5. Be3 {[%clk 0:02:51.6]}
5... O-O {[%clk 0:02:51.4]} 6. Qd2 {[%clk 0:02:51.4]} 6... a6 {[%clk 0:02:51.7]}
7. Bh6 {[%clk 0:02:50.7]} 7... b5 {[%clk 0:02:50]} 8. Bd3 {[%clk 0:02:48.8]}
8... Nc6 {[%clk 0:02:50.2]} 9. Bxg7 {[%clk 0:02:44.6]} 9... Kxg7 {[%clk
0:02:49]} 10. e5 {[%clk 0:02:27.3]} 10... dxe5 {[%clk 0:02:49.9]} 11. dxe5
{[%clk 0:02:27.3]} 11... Ng4 {[%clk 0:02:46.7]} 12. O-O-O {[%clk 0:01:36.1]}
12... b4 {[%clk 0:02:45.4]} 13. h3 {[%clk 0:01:03.3]} 13... Ngxe5 {[%clk
0:02:19]} 14. Nxe5 {[%clk 0:01:00]} 14... Nxe5 {[%clk 0:02:19.9]} 15. Qf4 {[%clk
0:00:58.6]} 15... Qd6 {[%clk 0:02:04.4]} 16. Ne2 {[%clk 0:00:58.5]} 16... Nxd3+
{[%clk 0:01:40.5]} 17. Rxd3 {[%clk 0:00:59.4]} 17... Qxf4+ {[%clk 0:01:38.4]}
18. Nxf4 {[%clk 0:01:00.3]} 18... Bf5 {[%clk 0:01:38.9]} 19. Rd5 {[%clk
0:00:56.8]} 19... Rfd8 {[%clk 0:01:32.8]} 20. Rhd1 {[%clk 0:00:50.4]} 20... Rd6
{[%clk 0:01:31.3]} 21. g4 {[%clk 0:00:37.1]} 21... Bd7 {[%clk 0:01:23.1]} 22.
Rc5 {[%clk 0:00:34.8]} 22... Rc8 {[%clk 0:01:13.5]} 23. Nd3 {[%clk 0:00:28.2]}
23... Rb8 {[%clk 0:00:53.4]} 24. Rxc7 {[%clk 0:00:25.8]} 24... Rb5 {[%clk
0:00:51.2]} 25. Nc5 {[%clk 0:00:20.1]} 25... Be8 {[%clk 0:00:37.9]} 26. Rxe7
{[%clk 0:00:18.7]} 26... Rxd1+ {[%clk 0:00:36.8]} 27. Kxd1 {[%clk 0:00:19.6]}
27... Kf8 {[%clk 0:00:35.2]} 28. Rc7 {[%clk 0:00:18.6]} 28... a5 {[%clk
0:00:35.7]} 29. Kd2 {[%clk 0:00:18.6]} 29... Rb6 {[%clk 0:00:35.2]} 30. f4
{[%clk 0:00:17.3]} 30... Rd6+ {[%clk 0:00:35.3]} 31. Ke3 {[%clk 0:00:17.5]}
31... Bc6 {[%clk 0:00:31.1]} 32. Nd3 {[%clk 0:00:14.5]} 32... Re6+ {[%clk
0:00:31]} 33. Kf2 {[%clk 0:00:12.8]} 33... Bd5 {[%clk 0:00:30.3]} 34. Rc5 {[%clk
0:00:12.4]} 34... Bxa2 {[%clk 0:00:27.3]} 35. Rxa5 {[%clk 0:00:12.5]} 35... b3
{[%clk 0:00:27.9]} 36. Nc1 {[%clk 0:00:10.1]} 36... Bb1 {[%clk 0:00:17.5]} 37.
Nxb3 {[%clk 0:00:09.6]} 37... Bxc2 {[%clk 0:00:16.3]} 38. Nd4 {[%clk 0:00:09.8]}
1-0

[Event "*** Titled Tuesday Blitz"]
[Site "Chess.com"]
[Date "2021.02.02"]
[Round "5"]
[White "Srisshhhtea"]
[Black "horripile"]
[Result "0-1"]
[WhiteElo "2445"]
[BlackElo "2715"]
[TimeControl "180+1"]
[EndTime "10:58:55 PST"]
[Termination "horripile won on time"]

1. d4 {[%clk 0:03:00.9]} 1... Nf6 {[%clk 0:02:59.6]} 2. c4 {[%clk 0:03:00.9]}
2... e6 {[%clk 0:02:59.7]} 3. Nf3 {[%clk 0:03:00.4]} 3... Bb4+ {[%clk
0:02:59.5]} 4. Bd2 {[%clk 0:02:59.8]} 4... a5 {[%clk 0:02:58.6]} 5. g3 {[%clk
0:02:58.6]} 5... d6 {[%clk 0:02:58.6]} 6. Bg2 {[%clk 0:02:58.1]} 6... Nbd7
{[%clk 0:02:59]} 7. O-O {[%clk 0:02:57.6]} 7... e5 {[%clk 0:02:59.4]} 8. Bg5
{[%clk 0:02:47.9]} 8... exd4 {[%clk 0:02:59]} 9. Nxd4 {[%clk 0:02:45.3]} 9...
O-O {[%clk 0:02:58.3]} 10. e3 {[%clk 0:02:39]} 10... h6 {[%clk 0:02:54.9]} 11.
Bxf6 {[%clk 0:02:37.4]} 11... Nxf6 {[%clk 0:02:55.8]} 12. a3 {[%clk 0:02:36.3]}
12... Bc5 {[%clk 0:02:55.2]} 13. Nc3 {[%clk 0:02:36.8]} 13... c6 {[%clk
0:02:49.6]} 14. Qd2 {[%clk 0:02:25.4]} 14... Qc7 {[%clk 0:02:33.3]} 15. Rad1
{[%clk 0:02:21.7]} 15... Rd8 {[%clk 0:02:32.9]} 16. Nb3 {[%clk 0:02:13.8]} 16...
Ba7 {[%clk 0:02:29.3]} 17. e4 {[%clk 0:02:06.3]} 17... Be6 {[%clk 0:02:28.6]}
18. Qd3 {[%clk 0:01:43.6]} 18... Nd7 {[%clk 0:02:19.7]} 19. Nd4 {[%clk
0:01:32.4]} 19... Ne5 {[%clk 0:02:15]} 20. Nxe6 {[%clk 0:01:31.3]} 20... fxe6
{[%clk 0:02:15.2]} 21. Qe2 {[%clk 0:01:30.9]} 21... Qb6 {[%clk 0:02:09.4]} 22.
Bh3 {[%clk 0:01:27.7]} 22... Kf7 {[%clk 0:02:02.2]} 23. Kg2 {[%clk 0:01:17.7]}
23... Qb3 {[%clk 0:01:42.4]} 24. f4 {[%clk 0:01:13]} 24... Nxc4 {[%clk 0:01:41]}
25. f5 {[%clk 0:00:55.1]} 25... exf5 {[%clk 0:01:38.6]} 26. Bxf5 {[%clk
0:00:50]} 26... Ne3+ {[%clk 0:01:31.6]} 27. Kh1 {[%clk 0:00:46.1]} 27... Kg8
{[%clk 0:01:21.2]} 28. Qh5 {[%clk 0:00:34.4]} 28... Qc2 {[%clk 0:01:07.3]} 29.
Ne2 {[%clk 0:00:19.4]} 29... Nxd1 {[%clk 0:00:53.4]} 30. Qg6 {[%clk 0:00:16.9]}
30... Qxe2 {[%clk 0:00:36.7]} 31. Qh7+ {[%clk 0:00:15.1]} 31... Kf8 {[%clk
0:00:36]} 32. Rf4 {[%clk 0:00:02.4]} 32... Nf2+ {[%clk 0:00:28.2]} 33. Kg2
{[%clk 0:00:02.6]} 33... Nxe4+ {[%clk 0:00:22.8]} 34. Kh1 {[%clk 0:00:01.2]}
34... Qe1+ {[%clk 0:00:19.4]} 35. Kg2 {[%clk 0:00:01.4]} 35... Qg1+ {[%clk
0:00:18.4]} 0-1

[Event "*** Titled Tuesday Blitz"]
[Site "Chess.com"]
[Date "2021.02.02"]
[Round "5"]
[White "HackingKid98"]
[Black "Sanyura"]
[Result "0-1"]
[WhiteElo "2450"]
[BlackElo "2700"]
[TimeControl "180+1"]
[EndTime "10:58:55 PST"]
[Termination "Sanyura won by resignation"]

1. d4 {[%clk 0:03:00.8]} 1... Nf6 {[%clk 0:02:59.4]} 2. c4 {[%clk 0:02:59.3]}
2... g6 {[%clk 0:02:59.6]} 3. g3 {[%clk 0:02:58.4]} 3... Bg7 {[%clk 0:03:00]} 4.
Bg2 {[%clk 0:02:59.3]} 4... O-O {[%clk 0:03:00.6]} 5. Nf3 {[%clk 0:02:58]} 5...
d6 {[%clk 0:03:01.2]} 6. O-O {[%clk 0:02:56.7]} 6... Nbd7 {[%clk 0:03:01.9]} 7.
Nc3 {[%clk 0:02:56.7]} 7... e5 {[%clk 0:03:02.7]} 8. e4 {[%clk 0:02:57]} 8...
exd4 {[%clk 0:03:03]} 9. Nxd4 {[%clk 0:02:56.7]} 9... Nc5 {[%clk 0:03:03.9]} 10.
f3 {[%clk 0:02:54]} 10... c6 {[%clk 0:03:02.6]} 11. Be3 {[%clk 0:02:53.8]} 11...
Re8 {[%clk 0:03:03]} 12. Qd2 {[%clk 0:02:52]} 12... Ne6 {[%clk 0:02:58.6]} 13.
Rfd1 {[%clk 0:02:50.7]} 13... Qa5 {[%clk 0:02:56.7]} 14. Nd5 {[%clk 0:02:44.7]}
14... Qxd2 {[%clk 0:02:53.9]} 15. Nxf6+ {[%clk 0:02:44.7]} 15... Bxf6 {[%clk
0:02:54]} 16. Rxd2 {[%clk 0:02:45.6]} 16... a5 {[%clk 0:02:36.2]} 17. Rad1
{[%clk 0:02:44]} 17... a4 {[%clk 0:02:34.9]} 18. Ne2 {[%clk 0:02:36.9]} 18...
Be7 {[%clk 0:02:25]} 19. Nc3 {[%clk 0:02:26.3]} 19... Nc5 {[%clk 0:02:22.2]} 20.
Bxc5 {[%clk 0:02:25.5]} 20... dxc5 {[%clk 0:02:18.8]} 21. f4 {[%clk 0:02:17.8]}
21... Bg4 {[%clk 0:02:17.6]} 22. Ne2 {[%clk 0:02:12.4]} 22... Be6 {[%clk
0:02:07.4]} 23. b3 {[%clk 0:02:09.5]} 23... axb3 {[%clk 0:02:05.8]} 24. axb3
{[%clk 0:02:10.4]} 24... Ra3 {[%clk 0:02:06.1]} 25. Nc1 {[%clk 0:02:10.3]} 25...
b5 {[%clk 0:02:05.8]} 26. Bf1 {[%clk 0:02:10]} 26... Rb8 {[%clk 0:02:00.7]} 27.
h3 {[%clk 0:02:07.2]} 27... bxc4 {[%clk 0:01:52.5]} 28. bxc4 {[%clk 0:01:57.8]}
28... Rxg3+ {[%clk 0:01:52.3]} 29. Kh2 {[%clk 0:01:56]} 29... Rf3 {[%clk
0:01:44.6]} 30. f5 {[%clk 0:01:52.2]} 30... gxf5 {[%clk 0:01:42.9]} 31. Bg2
{[%clk 0:01:52.3]} 31... Rf4 {[%clk 0:01:38.8]} 32. Nd3 {[%clk 0:01:50.8]} 32...
Rh4 {[%clk 0:01:31.7]} 33. exf5 {[%clk 0:01:50]} 33... Bxf5 {[%clk 0:01:32.6]}
34. Ne5 {[%clk 0:01:49.9]} 34... Bg5 {[%clk 0:01:27.3]} 35. Nxc6 {[%clk
0:01:38.3]} 35... Bxd2 {[%clk 0:01:26.6]} 36. Rxd2 {[%clk 0:01:37.6]} 36... Re8
{[%clk 0:01:25.1]} 37. Bd5 {[%clk 0:01:32.2]} 37... Be4 {[%clk 0:01:20.5]} 38.
Re2 {[%clk 0:01:26.2]} 38... Kf8 {[%clk 0:01:16.6]} 39. Kg3 {[%clk 0:01:25.4]}
39... Bxd5 {[%clk 0:01:14.8]} 40. Rxe8+ {[%clk 0:01:13.7]} 40... Kxe8 {[%clk
0:01:15.7]} 41. cxd5 {[%clk 0:01:14.6]} 41... Ra4 {[%clk 0:01:15.3]} 42. Ne5
{[%clk 0:01:05.3]} 42... f6 {[%clk 0:01:14.8]} 43. Ng4 {[%clk 0:01:02.3]} 43...
Ke7 {[%clk 0:01:14.8]} 44. Kf3 {[%clk 0:01:00.9]} 44... Ra3+ {[%clk 0:01:11.6]}
45. Kf4 {[%clk 0:01:00.3]} 45... Rxh3 {[%clk 0:01:10.6]} 46. d6+ {[%clk
0:00:58.5]} 46... Kxd6 {[%clk 0:01:10.7]} 47. Nxf6 {[%clk 0:00:58.9]} 47... Rh1
{[%clk 0:01:10.8]} 48. Ke3 {[%clk 0:00:56.4]} 48... h5 {[%clk 0:01:07.7]} 49.
Kf2 {[%clk 0:00:53.5]} 49... c4 {[%clk 0:01:06]} 50. Kg2 {[%clk 0:00:52]} 50...
Rh4 {[%clk 0:01:02.2]} 51. Kg3 {[%clk 0:00:51.6]} 51... Rg4+ {[%clk 0:01:00.6]}
52. Kf3 {[%clk 0:00:46.2]} 52... Rh4 {[%clk 0:00:59.4]} 53. Kg3 {[%clk
0:00:44.9]} 53... Ke6 {[%clk 0:00:55.6]} 54. Ne8 {[%clk 0:00:40.4]} 54... Rg4+
{[%clk 0:00:55.2]} 55. Kf3 {[%clk 0:00:40.4]} 55... c3 {[%clk 0:00:55.7]} 56.
Nc7+ {[%clk 0:00:40.1]} 56... Kf5 {[%clk 0:00:54.9]} 57. Nb5 {[%clk 0:00:41]}
57... c2 {[%clk 0:00:54.1]} 58. Nd6+ {[%clk 0:00:30.9]} 58... Ke6 {[%clk
0:00:53.8]} 59. Ne4 {[%clk 0:00:23.9]} 59... Rxe4 {[%clk 0:00:53.7]} 0-1

[Event "*** Titled Tuesday Blitz"]
[Site "Chess.com"]
[Date "2021.02.02"]
[Round "5"]
[White "guillembaches"]
[Black "northridgehawk"]
[Result "1-0"]
[WhiteElo "2461"]
[BlackElo "2316"]
[TimeControl "180+1"]
[EndTime "10:58:56 PST"]
[Termination "guillembaches won by resignation"]

1. e4 {[%clk 0:03:00.9]} 1... e5 {[%clk 0:02:56.4]} 2. Nf3 {[%clk 0:03:01]} 2...
Nc6 {[%clk 0:02:56.7]} 3. Nc3 {[%clk 0:03:01.6]} 3... Nf6 {[%clk 0:02:56.1]} 4.
d4 {[%clk 0:03:02.2]} 4... exd4 {[%clk 0:02:57]} 5. Nxd4 {[%clk 0:03:02.7]} 5...
Bb4 {[%clk 0:02:55.9]} 6. Nxc6 {[%clk 0:03:02.8]} 6... bxc6 {[%clk 0:02:56.2]}
7. Bd3 {[%clk 0:03:03.4]} 7... d5 {[%clk 0:02:55.8]} 8. Bd2 {[%clk 0:03:03.8]}
8... Kf8 {[%clk 0:02:55.9]} 9. e5 {[%clk 0:02:58.1]} 9... Ng4 {[%clk 0:02:39.5]}
10. Qe2 {[%clk 0:02:47.6]} 10... Bc5 {[%clk 0:02:20.2]} 11. O-O {[%clk
0:02:29.5]} 11... Qh4 {[%clk 0:02:14.8]} 12. h3 {[%clk 0:02:29.6]} 12... h5
{[%clk 0:01:22.1]} 13. Na4 {[%clk 0:02:25.2]} 13... Qg3 {[%clk 0:01:11.6]} 14.
Qxg4 {[%clk 0:01:03]} 14... hxg4 {[%clk 0:00:50.6]} 15. Nxc5 {[%clk 0:00:59.7]}
15... Qh4 {[%clk 0:00:35.9]} 16. Kh2 {[%clk 0:00:55.5]} 16... Rb8 {[%clk
0:00:28.1]} 17. Rae1 {[%clk 0:00:51.3]} 17... gxh3 {[%clk 0:00:23.7]} 18. g3
{[%clk 0:00:47]} 18... Qe7 {[%clk 0:00:19.8]} 19. b4 {[%clk 0:00:41.9]} 19...
Bg4 {[%clk 0:00:17.9]} 20. f4 {[%clk 0:00:38]} 20... Kg8 {[%clk 0:00:16.2]} 21.
f5 {[%clk 0:00:35.5]} 21... a5 {[%clk 0:00:13.9]} 22. f6 {[%clk 0:00:31.5]}
22... Qf8 {[%clk 0:00:12.9]} 23. e6 {[%clk 0:00:28.6]} 23... axb4 {[%clk
0:00:09]} 24. Nd7 {[%clk 0:00:22.9]} 24... Qc5 {[%clk 0:00:07.4]} 25. Nxc5
{[%clk 0:00:21.8]} 25... fxe6 {[%clk 0:00:05.9]} 26. f7+ {[%clk 0:00:21.4]}
26... Kf8 {[%clk 0:00:05.7]} 27. Nxe6+ {[%clk 0:00:21.4]} 27... Ke7 {[%clk
0:00:05.7]} 28. Ng5+ {[%clk 0:00:19.8]} 28... Kd6 {[%clk 0:00:05.9]} 29. Bxb4+
{[%clk 0:00:18.2]} 29... c5 {[%clk 0:00:04.8]} 30. Bd2 {[%clk 0:00:16.4]} 30...
c4 {[%clk 0:00:05]} 31. Bf4+ {[%clk 0:00:16.5]} 31... Kc6 {[%clk 0:00:05.3]} 32.
Bg6 {[%clk 0:00:16.6]} 32... Rhf8 {[%clk 0:00:05.4]} 33. Ne6 {[%clk 0:00:16.5]}
33... Bxe6 {[%clk 0:00:04.9]} 34. Rxe6+ {[%clk 0:00:17]} 34... Kc5 {[%clk
0:00:04]} 35. Re7 {[%clk 0:00:17.1]} 35... c6 {[%clk 0:00:04]} 36. Bxb8 {[%clk
0:00:16.4]} 36... Rxb8 {[%clk 0:00:03.8]} 37. Re8 {[%clk 0:00:17]} 37... Rb2
{[%clk 0:00:04.7]} 38. f8=Q+ {[%clk 0:00:16.6]} 38... Kd4 {[%clk 0:00:04.3]} 39.
Qxg7+ {[%clk 0:00:16.3]} 39... Kc5 {[%clk 0:00:03.6]} 40. Qxb2 {[%clk
0:00:16.3]} 1-0

[Event "*** Titled Tuesday Blitz"]
[Site "Chess.com"]
[Date "2021.02.02"]
[Round "5"]
[White "Kapitan_Bayan"]
[Black "Jungle_Jaguar"]
[Result "0-1"]
[WhiteElo "2435"]
[BlackElo "2609"]
[TimeControl "180+1"]
[EndTime "10:58:58 PST"]
[Termination "Jungle_Jaguar won on time"]

1. d4 {[%clk 0:03:00.9]} 1... Nf6 {[%clk 0:02:58.9]} 2. Nf3 {[%clk 0:02:59.3]}
2... g6 {[%clk 0:02:57.9]} 3. c4 {[%clk 0:02:58.9]} 3... Bg7 {[%clk 0:02:57.8]}
4. Nc3 {[%clk 0:02:59.4]} 4... O-O {[%clk 0:02:57.5]} 5. e4 {[%clk 0:02:59.8]}
5... d6 {[%clk 0:02:58.2]} 6. Be2 {[%clk 0:03:00.3]} 6... e5 {[%clk 0:02:59]} 7.
O-O {[%clk 0:02:59.9]} 7... Nc6 {[%clk 0:02:59.2]} 8. d5 {[%clk 0:03:00.2]} 8...
Ne7 {[%clk 0:02:59.7]} 9. Nd2 {[%clk 0:03:00.8]} 9... Ne8 {[%clk 0:02:55.6]} 10.
b4 {[%clk 0:03:01.1]} 10... f5 {[%clk 0:02:55.4]} 11. a4 {[%clk 0:03:01.2]}
11... a5 {[%clk 0:02:44.9]} 12. bxa5 {[%clk 0:03:00.8]} 12... Rxa5 {[%clk
0:02:44.9]} 13. Ba3 {[%clk 0:03:01.4]} 13... b6 {[%clk 0:02:44.2]} 14. Bb4
{[%clk 0:03:02]} 14... Ra8 {[%clk 0:02:44]} 15. a5 {[%clk 0:03:02.9]} 15... c5
{[%clk 0:02:38.3]} 16. dxc6 {[%clk 0:02:24.6]} 16... Nxc6 {[%clk 0:02:38.1]} 17.
Qa4 {[%clk 0:02:03.5]} 17... Bd7 {[%clk 0:02:14.9]} 18. a6 {[%clk 0:01:59.5]}
18... Bh6 {[%clk 0:01:58.5]} 19. Nb5 {[%clk 0:01:48.9]} 19... Rxa6 {[%clk
0:01:34.6]} 20. Qxa6 {[%clk 0:01:24]} 20... Nxb4 {[%clk 0:01:34.7]} 21. Qa4
{[%clk 0:01:02.8]} 21... Bxd2 {[%clk 0:01:34.2]} 22. Rfd1 {[%clk 0:00:54]} 22...
Bc3 {[%clk 0:01:19.6]} 23. Rac1 {[%clk 0:00:52.8]} 23... Bd4 {[%clk 0:00:48.9]}
24. Qxb4 {[%clk 0:00:50.7]} 24... Bc5 {[%clk 0:00:49.1]} 25. Qd2 {[%clk
0:00:30.2]} 25... fxe4 {[%clk 0:00:48.8]} 26. Rf1 {[%clk 0:00:30.6]} 26... Bc6
{[%clk 0:00:27.4]} 27. Qh6 {[%clk 0:00:09]} 27... Qf6 {[%clk 0:00:19.9]} 28. Nc3
{[%clk 0:00:07]} 28... Ng7 {[%clk 0:00:19.1]} 29. Nd5 {[%clk 0:00:06.5]} 29...
Bxd5 {[%clk 0:00:16.4]} 30. cxd5 {[%clk 0:00:07.4]} 30... Nf5 {[%clk 0:00:16.7]}
31. Qh3 {[%clk 0:00:06.8]} 31... Nd4 {[%clk 0:00:16.5]} 32. Bg4 {[%clk
0:00:04.5]} 32... Qf4 {[%clk 0:00:15.3]} 33. Be6+ {[%clk 0:00:04.6]} 33... Kg7
{[%clk 0:00:15.9]} 34. Rce1 {[%clk 0:00:04]} 34... Nc2 {[%clk 0:00:15.5]} 35.
Re2 {[%clk 0:00:03.4]} 35... Nb4 {[%clk 0:00:15.4]} 36. Rb2 {[%clk 0:00:02.6]}
36... Nd3 {[%clk 0:00:15.4]} 37. Re2 {[%clk 0:00:02.8]} 37... Nxf2 {[%clk
0:00:14.9]} 0-1